[Event "Titled Tuesday Blitz July 11 Early 2023"]
[White "Ovchinnikov, Vsevolod"]
[Black "Bashirli, Saadat"]
[WhiteFideId "24176842"]
[BlackFideId "13429990"]
[WhiteElo "2606"]
[BlackElo "2369"]
[Result "1-0"]
[Round "4"]
[TimeControl "180+2"]
[Date "2023.07.11"]
[WhiteClock "0:00:09"]
[BlackClock "0:00:04"]
[Board "89"]

1. d4 {[%clk 0:03:00]}  Nf6 {[%clk 0:02:54]} 2. c4 {[%clk 0:03:01]}  e6 {[%clk 0:02:54]} 3. g3 {[%clk 0:03:01]}  Bb4+ {[%clk 0:02:54]} 4. Bd2 {[%clk 0:03:01]}  Bxd2+ {[%clk 0:02:54]} 5. Nxd2 {[%clk 0:02:55]}  O-O {[%clk 0:02:53]} 6. Bg2 {[%clk 0:02:54]}  c5 {[%clk 0:02:52]} 7. d5 {[%clk 0:02:48]}  d6 {[%clk 0:02:48]} 8. e4 {[%clk 0:02:42]}  e5 {[%clk 0:02:45]} 9. Ne2 {[%clk 0:02:42]}  a6 {[%clk 0:02:42]} 10. a4 {[%clk 0:02:41]}  Bd7 {[%clk 0:02:42]} 11. a5 {[%clk 0:02:41]}  b5 {[%clk 0:02:39]} 12. axb6 {[%clk 0:02:41]}  Qxb6 {[%clk 0:02:39]} 13. Qc2 {[%clk 0:02:39]}  a5 {[%clk 0:02:38]} 14. O-O {[%clk 0:02:38]}  Na6 {[%clk 0:02:38]} 15. h3 {[%clk 0:02:33]}  Rfb8 {[%clk 0:02:33]} 16. Rfb1 {[%clk 0:02:29]}  Nb4 {[%clk 0:02:30]} 17. Qc3 {[%clk 0:02:28]}  a4 {[%clk 0:02:27]} 18. f4 {[%clk 0:02:23]}  exf4 {[%clk 0:02:19]} 19. gxf4 {[%clk 0:02:23]}  Re8 {[%clk 0:02:08]} 20. Ng3 {[%clk 0:02:05]}  Qc7 {[%clk 0:01:51]} 21. Re1 {[%clk 0:02:05]}  Kf8 {[%clk 0:01:35]} 22. e5 {[%clk 0:02:00]}  Ng8 {[%clk 0:01:34]} 23. Nde4 {[%clk 0:01:40]}  dxe5 {[%clk 0:01:09]} 24. d6 {[%clk 0:01:40]}  Qa5 {[%clk 0:01:04]} 25. fxe5 {[%clk 0:01:35]}  Nc6 {[%clk 0:01:04]} 26. Ng5 {[%clk 0:01:30]}  Nh6 {[%clk 0:00:48]} 27. e6 {[%clk 0:00:42]}  Qxc3 {[%clk 0:00:36]} 28. e7+ {[%clk 0:00:42]}  Kg8 {[%clk 0:00:35]} 29. bxc3 {[%clk 0:00:42]}  a3 {[%clk 0:00:25]} 30. Bd5 {[%clk 0:00:34]}  Ra6 {[%clk 0:00:20]} 31. N3e4 {[%clk 0:00:27]}  Ra5 {[%clk 0:00:16]} 32. Nxf7 {[%clk 0:00:20]}  Nxf7 {[%clk 0:00:14]} 33. Ng5 {[%clk 0:00:21]}  Raa8 {[%clk 0:00:04]} 34. Nxf7 {[%clk 0:00:10]}  Nb4 {[%clk 0:00:02]} 35. cxb4 {[%clk 0:00:09]}  Ra4 {[%clk 0:00:02]} 36. Ne5+ {[%clk 0:00:09]}  Kh8 {[%clk 0:00:02]} 37. bxc5 {[%clk 0:00:08]}  Rb4 {[%clk 0:00:02]} 38. Nxd7 {[%clk 0:00:09]}  Rbb8 {[%clk 0:00:02]} 39. Nxb8 {[%clk 0:00:08]}  Rxb8 {[%clk 0:00:03]} 40. e8=Q+ {[%clk 0:00:09]}  Rxe8 {[%clk 0:00:04]} 41. Rxe8# {[%clk 0:00:09]} 1-0


[Site "https://www.chess.com"]

[Event "Titled Tuesday Blitz July 11 Early 2023"]
[White "Sadykov, Ramil"]
[Black "Rodriguez Santiago, Jaime"]
[WhiteFideId "24113590"]
[BlackFideId "3100898"]
[WhiteElo "2602"]
[BlackElo "2362"]
[Result "1-0"]
[Round "4"]
[TimeControl "180+2"]
[Date "2023.07.11"]
[WhiteClock "0:00:33"]
[BlackClock "0:00:03"]
[Board "90"]

1. e4 {[%clk 0:03:00]}  c6 {[%clk 0:02:59]} 2. d4 {[%clk 0:02:59]}  d5 {[%clk 0:03:00]} 3. exd5 {[%clk 0:02:56]}  cxd5 {[%clk 0:03:00]} 4. Bd3 {[%clk 0:02:57]}  Nc6 {[%clk 0:02:59]} 5. c3 {[%clk 0:02:56]}  Qc7 {[%clk 0:02:59]} 6. Na3 {[%clk 0:02:56]}  a6 {[%clk 0:02:58]} 7. Nf3 {[%clk 0:02:54]}  Bg4 {[%clk 0:02:57]} 8. Nc2 {[%clk 0:02:50]}  Nf6 {[%clk 0:02:55]} 9. h3 {[%clk 0:02:51]}  Bh5 {[%clk 0:02:54]} 10. O-O {[%clk 0:02:51]}  e6 {[%clk 0:02:54]} 11. Re1 {[%clk 0:02:49]}  Bd6 {[%clk 0:02:52]} 12. Bg5 {[%clk 0:02:49]}  O-O-O {[%clk 0:02:37]} 13. b4 {[%clk 0:02:44]}  h6 {[%clk 0:02:35]} 14. Bxf6 {[%clk 0:02:42]}  gxf6 {[%clk 0:02:35]} 15. a4 {[%clk 0:02:42]}  Ne7 {[%clk 0:02:27]} 16. b5 {[%clk 0:02:39]}  a5 {[%clk 0:02:26]} 17. b6 {[%clk 0:02:36]}  Qxc3 {[%clk 0:02:15]} 18. Bb5 {[%clk 0:01:29]}  Kb8 {[%clk 0:02:11]} 19. Re3 {[%clk 0:01:25]}  Qc8 {[%clk 0:01:55]} 20. Qd2 {[%clk 0:01:24]}  Nc6 {[%clk 0:01:22]} 21. Bxc6 {[%clk 0:01:24]}  Qxc6 {[%clk 0:01:23]} 22. Qxa5 {[%clk 0:01:24]}  Qxc2 {[%clk 0:00:51]} 23. Rc3 {[%clk 0:01:20]}  Qxc3 {[%clk 0:00:50]} 24. Qxc3 {[%clk 0:01:21]}  Rhg8 {[%clk 0:00:40]} 25. Kf1 {[%clk 0:01:15]}  Rc8 {[%clk 0:00:34]} 26. Qa5 {[%clk 0:01:14]}  Rc2 {[%clk 0:00:34]} 27. Ne1 {[%clk 0:01:08]}  Be2+ {[%clk 0:00:11]} 28. Kg1 {[%clk 0:01:08]}  Rb2 {[%clk 0:00:11]} 29. Qa7+ {[%clk 0:00:59]}  Kc8 {[%clk 0:00:10]} 30. Rc1+ {[%clk 0:00:53]}  Bc4 {[%clk 0:00:11]} 31. Nd3 {[%clk 0:00:45]}  Bb8 {[%clk 0:00:11]} 32. Qa5 {[%clk 0:00:33]}  Rd2 {[%clk 0:00:03]} 33. Qxd2 {[%clk 0:00:33]} 1-0


[Site "https://www.chess.com"]

[Event "Titled Tuesday Blitz July 11 Early 2023"]
[White "Tsyhanchuk, Stanislav"]
[Black "ATM622"]
[WhiteFideId "13505130"]
[WhiteElo "2275"]
[BlackElo "2591"]
[Result "0-1"]
[Round "4"]
[TimeControl "180+2"]
[Date "2023.07.11"]
[WhiteClock "0:00:17"]
[BlackClock "0:00:24"]
[Board "96"]

1. e4 {[%clk 0:03:00]}  e5 {[%clk 0:02:59]} 2. Nf3 {[%clk 0:03:00]}  Nf6 {[%clk 0:02:58]} 3. Nxe5 {[%clk 0:02:59]}  d6 {[%clk 0:02:57]} 4. Nf3 {[%clk 0:03:00]}  Nxe4 {[%clk 0:02:57]} 5. d4 {[%clk 0:02:59]}  d5 {[%clk 0:02:56]} 6. Bd3 {[%clk 0:02:59]}  Nc6 {[%clk 0:02:55]} 7. O-O {[%clk 0:02:59]}  Be7 {[%clk 0:02:53]} 8. c3 {[%clk 0:02:59]}  O-O {[%clk 0:02:52]} 9. Bf4 {[%clk 0:02:58]}  Bg4 {[%clk 0:02:51]} 10. h3 {[%clk 0:02:57]}  Bh5 {[%clk 0:02:48]} 11. Nbd2 {[%clk 0:02:53]}  f5 {[%clk 0:02:47]} 12. Qb3 {[%clk 0:02:47]}  Na5 {[%clk 0:02:45]} 13. Qa4 {[%clk 0:02:31]}  c6 {[%clk 0:02:40]} 14. b4 {[%clk 0:02:24]}  Nc4 {[%clk 0:02:35]} 15. Nxc4 {[%clk 0:02:20]}  b5 {[%clk 0:02:33]} 16. Qa6 {[%clk 0:02:10]}  bxc4 {[%clk 0:02:28]} 17. Bxc4 {[%clk 0:01:18]}  dxc4 {[%clk 0:02:25]} 18. Qxc4+ {[%clk 0:01:19]}  Qd5 {[%clk 0:02:23]} 19. Qd3 {[%clk 0:01:13]}  g5 {[%clk 0:02:17]} 20. Bh2 {[%clk 0:00:59]}  g4 {[%clk 0:02:09]} 21. Ne5 {[%clk 0:00:55]}  gxh3 {[%clk 0:02:06]} 22. Qxh3 {[%clk 0:00:56]}  Bg6 {[%clk 0:02:00]} 23. Rad1 {[%clk 0:00:39]}  a5 {[%clk 0:01:54]} 24. c4 {[%clk 0:00:38]}  Qe6 {[%clk 0:01:54]} 25. b5 {[%clk 0:00:18]}  cxb5 {[%clk 0:01:52]} 26. d5 {[%clk 0:00:19]}  Qc8 {[%clk 0:01:45]} 27. Nc6 {[%clk 0:00:19]}  Bf6 {[%clk 0:01:40]} 28. Be5 {[%clk 0:00:18]}  Qd7 {[%clk 0:01:32]} 29. Bxf6 {[%clk 0:00:18]}  Rxf6 {[%clk 0:01:33]} 30. cxb5 {[%clk 0:00:19]}  Nd6 {[%clk 0:01:26]} 31. a4 {[%clk 0:00:19]}  Re8 {[%clk 0:01:16]} 32. Rfe1 {[%clk 0:00:20]}  Ne4 {[%clk 0:01:15]} 33. b6 {[%clk 0:00:17]}  Rxc6 {[%clk 0:01:03]} 34. dxc6 {[%clk 0:00:16]}  Qxc6 {[%clk 0:01:04]} 35. Qb3+ {[%clk 0:00:15]}  Bf7 {[%clk 0:01:03]} 36. Qb5 {[%clk 0:00:12]}  Qc2 {[%clk 0:00:44]} 37. Qe2 {[%clk 0:00:13]}  Qc6 {[%clk 0:00:41]} 38. Qb2 {[%clk 0:00:12]}  Rb8 {[%clk 0:00:37]} 39. Rb1 {[%clk 0:00:10]}  Qc5 {[%clk 0:00:30]} 40. Rec1 {[%clk 0:00:09]}  Qd6 {[%clk 0:00:28]} 41. Rd1 {[%clk 0:00:08]}  Qc6 {[%clk 0:00:26]} 42. Qb5 {[%clk 0:00:08]}  Be8 {[%clk 0:00:25]} 43. Qxf5 {[%clk 0:00:07]}  Nc3 {[%clk 0:00:20]} 44. Qg5+ {[%clk 0:00:06]}  Bg6 {[%clk 0:00:21]} 45. Rbc1 {[%clk 0:00:05]}  Ne2+ {[%clk 0:00:19]} 46. Kf1 {[%clk 0:00:05]}  Nxc1 {[%clk 0:00:19]} 47. Rd8+ {[%clk 0:00:05]}  Rxd8 {[%clk 0:00:20]} 48. Qxd8+ {[%clk 0:00:06]}  Kg7 {[%clk 0:00:19]} 49. Qc7+ {[%clk 0:00:06]}  Qxc7 {[%clk 0:00:18]} 50. bxc7 {[%clk 0:00:07]}  Bf5 {[%clk 0:00:19]} 51. Ke1 {[%clk 0:00:06]}  Nb3 {[%clk 0:00:19]} 52. f3 {[%clk 0:00:06]}  Kf7 {[%clk 0:00:17]} 53. g4 {[%clk 0:00:07]}  Bc8 {[%clk 0:00:17]} 54. Ke2 {[%clk 0:00:06]}  Nc5 {[%clk 0:00:18]} 55. Kd2 {[%clk 0:00:07]}  Nxa4 {[%clk 0:00:18]} 56. Kd3 {[%clk 0:00:08]}  Nb6 {[%clk 0:00:18]} 57. Kc3 {[%clk 0:00:08]}  a4 {[%clk 0:00:19]} 58. Kb4 {[%clk 0:00:09]}  Kf6 {[%clk 0:00:19]} 59. Ka5 {[%clk 0:00:09]}  Nd5 {[%clk 0:00:19]} 60. Kxa4 {[%clk 0:00:09]}  Nxc7 {[%clk 0:00:20]} 61. Kb4 {[%clk 0:00:09]}  Ne6 {[%clk 0:00:20]} 62. f4 {[%clk 0:00:10]}  Nxf4 {[%clk 0:00:20]} 63. g5+ {[%clk 0:00:11]}  Kxg5 {[%clk 0:00:20]} 64. Kc4 {[%clk 0:00:12]}  Bf5 {[%clk 0:00:20]} 65. Kc3 {[%clk 0:00:13]}  Kg4 {[%clk 0:00:21]} 66. Kd4 {[%clk 0:00:13]}  Kg3 {[%clk 0:00:22]} 67. Ke5 {[%clk 0:00:14]}  Bg4 {[%clk 0:00:22]} 68. Kf6 {[%clk 0:00:14]}  h5 {[%clk 0:00:23]} 69. Kg5 {[%clk 0:00:15]}  h4 {[%clk 0:00:23]} 70. Kh6 {[%clk 0:00:15]}  h3 {[%clk 0:00:24]} 71. Kg5 {[%clk 0:00:16]}  h2 {[%clk 0:00:25]} 72. Kf6 {[%clk 0:00:17]}  h1=Q {[%clk 0:00:25]} 73. Kg5 {[%clk 0:00:17]}  Qh4# {[%clk 0:00:24]} 0-1


[Site "https://www.chess.com"]

[Event "Titled Tuesday Blitz July 11 Early 2023"]
[White "Shohat, Yotam"]
[Black "Onslow, Alfie"]
[WhiteFideId "2813955"]
[BlackFideId "436976"]
[WhiteElo "2590"]
[BlackElo "2266"]
[Result "0-1"]
[Round "4"]
[TimeControl "180+2"]
[Date "2023.07.11"]
[WhiteClock "0:00:00"]
[BlackClock "0:00:05"]
[Board "97"]

1. e4 {[%clk 0:03:00]}  c5 {[%clk 0:03:00]} 2. Nf3 {[%clk 0:02:56]}  Nc6 {[%clk 0:03:00]} 3. d4 {[%clk 0:02:54]}  cxd4 {[%clk 0:03:00]} 4. Nxd4 {[%clk 0:02:55]}  Qc7 {[%clk 0:03:00]} 5. Nc3 {[%clk 0:02:53]}  e6 {[%clk 0:03:00]} 6. Be3 {[%clk 0:02:51]}  a6 {[%clk 0:02:59]} 7. Qf3 {[%clk 0:02:51]}  Nf6 {[%clk 0:02:55]} 8. O-O-O {[%clk 0:02:48]}  h5 {[%clk 0:02:55]} 9. h3 {[%clk 0:02:05]}  Ne5 {[%clk 0:02:47]} 10. Qg3 {[%clk 0:01:59]}  h4 {[%clk 0:02:45]} 11. Qh2 {[%clk 0:01:56]}  d6 {[%clk 0:02:19]} 12. f4 {[%clk 0:01:54]}  Nc4 {[%clk 0:02:16]} 13. Bxc4 {[%clk 0:01:54]}  Qxc4 {[%clk 0:02:16]} 14. e5 {[%clk 0:01:50]}  Nd5 {[%clk 0:02:03]} 15. Nxd5 {[%clk 0:01:47]}  Qxd5 {[%clk 0:02:03]} 16. Nb3 {[%clk 0:01:33]}  Qe4 {[%clk 0:01:55]} 17. Rhe1 {[%clk 0:01:33]}  d5 {[%clk 0:01:49]} 18. Bc5 {[%clk 0:01:22]}  Qa4 {[%clk 0:01:37]} 19. Bxf8 {[%clk 0:01:15]}  Kxf8 {[%clk 0:01:35]} 20. Kb1 {[%clk 0:01:08]}  g6 {[%clk 0:01:35]} 21. g4 {[%clk 0:00:46]}  hxg3 {[%clk 0:01:30]} 22. Qxg3 {[%clk 0:00:45]}  Qd7 {[%clk 0:01:12]} 23. h4 {[%clk 0:00:40]}  Qe7 {[%clk 0:01:11]} 24. Rh1 {[%clk 0:00:40]}  Rh5 {[%clk 0:01:06]} 25. Nd4 {[%clk 0:00:38]}  Bd7 {[%clk 0:01:01]} 26. Qg4 {[%clk 0:00:35]}  Rc8 {[%clk 0:00:56]} 27. Ne2 {[%clk 0:00:17]}  Ba4 {[%clk 0:00:45]} 28. b3 {[%clk 0:00:15]}  Bb5 {[%clk 0:00:15]} 29. Ng3 {[%clk 0:00:15]}  Rh7 {[%clk 0:00:15]} 30. h5 {[%clk 0:00:15]}  Qc5 {[%clk 0:00:11]} 31. Rd2 {[%clk 0:00:13]}  Qc3 {[%clk 0:00:11]} 32. Rdh2 {[%clk 0:00:13]}  Rg7 {[%clk 0:00:07]} 33. h6 {[%clk 0:00:06]}  Rh7 {[%clk 0:00:07]} 34. Qg5 {[%clk 0:00:06]}  Bd3 {[%clk 0:00:06]} 35. cxd3 {[%clk 0:00:04]}  Qxd3+ {[%clk 0:00:06]} 36. Ka1 {[%clk 0:00:04]}  Qd4+ {[%clk 0:00:06]} 37. Rb2 {[%clk 0:00:04]}  b5 {[%clk 0:00:03]} 38. Rb1 {[%clk 0:00:03]}  a5 {[%clk 0:00:03]} 39. a3 {[%clk 0:00:02]}  a4 {[%clk 0:00:03]} 40. b4 {[%clk 0:00:03]}  Qc3 {[%clk 0:00:03]} 41. Ka2 {[%clk 0:00:03]}  Qc4+ {[%clk 0:00:04]} 42. Ka1 {[%clk 0:00:03]}  Qc3 {[%clk 0:00:04]} 43. Rd1 {[%clk 0:00:02]}  Qxa3+ {[%clk 0:00:04]} 44. Kb1 {[%clk 0:00:02]}  Qc3 {[%clk 0:00:04]} 45. Ne2 {[%clk 0:00:02]}  Qc4 {[%clk 0:00:04]} 46. Rc1 {[%clk 0:00:00]}  Qe4+ {[%clk 0:00:05]} 0-1


[Site "https://www.chess.com"]

[Event "Titled Tuesday Blitz July 11 Early 2023"]
[White "Altman, Joshua"]
[Black "La Villa Rivas, Marlon Javier"]
[WhiteFideId "426210"]
[BlackFideId "3519546"]
[WhiteElo "2590"]
[BlackElo "2242"]
[Result "1-0"]
[Round "4"]
[TimeControl "180+2"]
[Date "2023.07.11"]
[WhiteClock "0:00:12"]
[BlackClock "0:01:18"]
[Board "98"]

1. Nf3 {[%clk 0:03:00]}  d5 {[%clk 0:02:58]} 2. g3 {[%clk 0:03:00]}  Nf6 {[%clk 0:02:58]} 3. Bg2 {[%clk 0:03:00]}  c5 {[%clk 0:02:59]} 4. O-O {[%clk 0:03:00]}  Nc6 {[%clk 0:02:59]} 5. d4 {[%clk 0:03:00]}  e6 {[%clk 0:02:59]} 6. b3 {[%clk 0:02:58]}  cxd4 {[%clk 0:02:55]} 7. Nxd4 {[%clk 0:02:58]}  Be7 {[%clk 0:02:52]} 8. Bb2 {[%clk 0:02:57]}  O-O {[%clk 0:02:52]} 9. c4 {[%clk 0:02:56]}  Nxd4 {[%clk 0:02:51]} 10. Qxd4 {[%clk 0:02:55]}  dxc4 {[%clk 0:02:51]} 11. Qxc4 {[%clk 0:02:53]}  a6 {[%clk 0:02:45]} 12. Nc3 {[%clk 0:02:50]}  b5 {[%clk 0:02:43]} 13. Qf4 {[%clk 0:02:43]}  Ra7 {[%clk 0:02:43]} 14. Rfd1 {[%clk 0:02:42]}  Qb6 {[%clk 0:02:43]} 15. Rac1 {[%clk 0:02:37]}  Rd7 {[%clk 0:02:40]} 16. Rxd7 {[%clk 0:02:36]}  Bxd7 {[%clk 0:02:41]} 17. Ne4 {[%clk 0:02:34]}  Nxe4 {[%clk 0:02:39]} 18. Bxe4 {[%clk 0:02:32]}  Bc5 {[%clk 0:02:16]} 19. Bxg7 {[%clk 0:01:58]}  Bxf2+ {[%clk 0:02:15]} 20. Qxf2 {[%clk 0:01:58]}  Qxf2+ {[%clk 0:02:14]} 21. Kxf2 {[%clk 0:01:59]}  Kxg7 {[%clk 0:02:14]} 22. Rc7 {[%clk 0:01:59]}  Rd8 {[%clk 0:02:14]} 23. Ra7 {[%clk 0:01:59]}  Bc8 {[%clk 0:02:14]} 24. Bd3 {[%clk 0:01:56]}  Rd7 {[%clk 0:02:09]} 25. Rxd7 {[%clk 0:01:50]}  Bxd7 {[%clk 0:02:10]} 26. Ke3 {[%clk 0:01:50]}  Kf6 {[%clk 0:02:08]} 27. Kd4 {[%clk 0:01:50]}  Kg5 {[%clk 0:02:05]} 28. Kc5 {[%clk 0:01:42]}  h5 {[%clk 0:02:01]} 29. Kd6 {[%clk 0:01:35]}  Be8 {[%clk 0:01:58]} 30. Ke7 {[%clk 0:01:35]}  Bc6 {[%clk 0:01:57]} 31. Kxf7 {[%clk 0:01:35]}  e5 {[%clk 0:01:56]} 32. e4 {[%clk 0:01:24]}  Kg4 {[%clk 0:01:54]} 33. Ke6 {[%clk 0:01:21]}  Kh3 {[%clk 0:01:53]} 34. Kxe5 {[%clk 0:01:18]}  Kxh2 {[%clk 0:01:53]} 35. Kd6 {[%clk 0:01:16]}  Be8 {[%clk 0:01:50]} 36. Ke7 {[%clk 0:01:14]}  Bg6 {[%clk 0:01:50]} 37. Kf6 {[%clk 0:01:13]}  Be8 {[%clk 0:01:50]} 38. e5 {[%clk 0:01:09]}  Kxg3 {[%clk 0:01:50]} 39. Be4 {[%clk 0:01:04]}  h4 {[%clk 0:01:50]} 40. e6 {[%clk 0:01:04]}  h3 {[%clk 0:01:50]} 41. Ke7 {[%clk 0:01:03]}  Bh5 {[%clk 0:01:50]} 42. Kf6 {[%clk 0:00:37]}  Kf2 {[%clk 0:01:41]} 43. e7 {[%clk 0:00:35]}  Kg1 {[%clk 0:01:40]} 44. Bg6 {[%clk 0:00:20]}  Bxg6 {[%clk 0:01:40]} 45. Kxg6 {[%clk 0:00:21]}  h2 {[%clk 0:01:41]} 46. e8=Q {[%clk 0:00:21]}  h1=Q {[%clk 0:01:42]} 47. Qe1+ {[%clk 0:00:21]}  Kh2 {[%clk 0:01:40]} 48. Qxh1+ {[%clk 0:00:18]}  Kxh1 {[%clk 0:01:41]} 49. Kf5 {[%clk 0:00:18]}  Kg2 {[%clk 0:01:41]} 50. Ke5 {[%clk 0:00:18]}  Kf3 {[%clk 0:01:36]} 51. Kd5 {[%clk 0:00:18]}  Ke3 {[%clk 0:01:36]} 52. Kc5 {[%clk 0:00:18]}  Ke4 {[%clk 0:01:24]} 53. Kb6 {[%clk 0:00:16]}  Kd5 {[%clk 0:01:24]} 54. Kxa6 {[%clk 0:00:12]}  Kc6 {[%clk 0:01:25]} 55. b4 {[%clk 0:00:11]}  Kc7 {[%clk 0:01:19]} 56. Kxb5 {[%clk 0:00:12]}  Kb7 {[%clk 0:01:18]} 57. a4 {[%clk 0:00:12]} 1-0


[Site "https://www.chess.com"]

[Event "Titled Tuesday Blitz July 11 Early 2023"]
[White "Karttunen, Mika"]
[Black "Kev4444444444"]
[WhiteFideId "502081"]
[WhiteElo "2582"]
[BlackElo "2194"]
[Result "0-1"]
[Round "4"]
[TimeControl "180+2"]
[Date "2023.07.11"]
[WhiteClock "0:00:04"]
[BlackClock "0:00:16"]
[Board "99"]

1. c4 {[%clk 0:03:00]}  e5 {[%clk 0:02:58]} 2. Nc3 {[%clk 0:02:59]}  Nf6 {[%clk 0:02:57]} 3. Nf3 {[%clk 0:02:59]}  Nc6 {[%clk 0:02:57]} 4. e4 {[%clk 0:02:58]}  Bb4 {[%clk 0:02:57]} 5. d3 {[%clk 0:02:55]}  d6 {[%clk 0:02:55]} 6. a3 {[%clk 0:02:55]}  Bxc3+ {[%clk 0:02:55]} 7. bxc3 {[%clk 0:02:56]}  O-O {[%clk 0:02:55]} 8. g3 {[%clk 0:02:55]}  h6 {[%clk 0:02:55]} 9. Bg2 {[%clk 0:02:56]}  Be6 {[%clk 0:02:54]} 10. h3 {[%clk 0:02:38]}  Qc8 {[%clk 0:02:46]} 11. g4 {[%clk 0:02:37]}  h5 {[%clk 0:02:42]} 12. Ng5 {[%clk 0:02:00]}  hxg4 {[%clk 0:02:14]} 13. Be3 {[%clk 0:01:28]}  Ne7 {[%clk 0:02:08]} 14. hxg4 {[%clk 0:01:12]}  Bxg4 {[%clk 0:01:58]} 15. f3 {[%clk 0:01:08]}  Bd7 {[%clk 0:01:54]} 16. Kd2 {[%clk 0:01:03]}  Ng6 {[%clk 0:01:51]} 17. Qg1 {[%clk 0:00:57]}  Re8 {[%clk 0:01:44]} 18. Qh2 {[%clk 0:00:40]}  a6 {[%clk 0:01:40]} 19. Rag1 {[%clk 0:00:38]}  b5 {[%clk 0:01:31]} 20. c5 {[%clk 0:00:38]}  d5 {[%clk 0:01:23]} 21. exd5 {[%clk 0:00:33]}  Nxd5 {[%clk 0:01:08]} 22. Qh7+ {[%clk 0:00:33]}  Kf8 {[%clk 0:01:09]} 23. Bh3 {[%clk 0:00:26]}  Bxh3 {[%clk 0:00:46]} 24. Rxh3 {[%clk 0:00:26]}  Qf5 {[%clk 0:00:46]} 25. Rh5 {[%clk 0:00:19]}  Nxe3 {[%clk 0:00:34]} 26. Kxe3 {[%clk 0:00:19]}  Rad8 {[%clk 0:00:34]} 27. Ne4 {[%clk 0:00:17]}  Qf4+ {[%clk 0:00:31]} 28. Ke2 {[%clk 0:00:17]}  Rd7 {[%clk 0:00:22]} 29. Rd1 {[%clk 0:00:16]}  Red8 {[%clk 0:00:22]} 30. Rh3 {[%clk 0:00:12]}  Qf5 {[%clk 0:00:22]} 31. Ke1 {[%clk 0:00:10]}  Qe6 {[%clk 0:00:20]} 32. Ng5 {[%clk 0:00:08]}  Qb3 {[%clk 0:00:20]} 33. Rg3 {[%clk 0:00:07]}  Qxc3+ {[%clk 0:00:20]} 34. Kf2 {[%clk 0:00:07]}  Qc2+ {[%clk 0:00:20]} 35. Ke1 {[%clk 0:00:07]}  Rxd3 {[%clk 0:00:19]} 36. Rxd3 {[%clk 0:00:06]}  Rxd3 {[%clk 0:00:20]} 37. Ne6+ {[%clk 0:00:04]}  fxe6 {[%clk 0:00:16]} 38. Qxg6 {[%clk 0:00:04]}  Rd1# {[%clk 0:00:16]} 0-1


[Site "https://www.chess.com"]

[Event "Titled Tuesday Blitz July 11 Early 2023"]
[White "Papayan, Oleg"]
[Black "Roque Sola, Gisela"]
[WhiteFideId "4193911"]
[BlackFideId "5120241"]
[WhiteElo "2547"]
[BlackElo "2149"]
[Result "1-0"]
[Round "4"]
[TimeControl "180+2"]
[Date "2023.07.11"]
[WhiteClock "0:01:06"]
[BlackClock "0:00:22"]
[Board "100"]

1. e4 {[%clk 0:03:00]}  e5 {[%clk 0:02:59]} 2. Nf3 {[%clk 0:03:01]}  Nc6 {[%clk 0:02:59]} 3. Bc4 {[%clk 0:03:00]}  Bc5 {[%clk 0:02:57]} 4. d3 {[%clk 0:02:59]}  a6 {[%clk 0:02:56]} 5. c3 {[%clk 0:02:59]}  Ba7 {[%clk 0:02:52]} 6. O-O {[%clk 0:02:58]}  Nf6 {[%clk 0:02:52]} 7. Nbd2 {[%clk 0:02:54]}  d6 {[%clk 0:02:51]} 8. Re1 {[%clk 0:02:50]}  O-O {[%clk 0:02:50]} 9. h3 {[%clk 0:02:49]}  Ne7 {[%clk 0:02:33]} 10. d4 {[%clk 0:02:45]}  Ng6 {[%clk 0:02:31]} 11. Nf1 {[%clk 0:02:37]}  Qe7 {[%clk 0:02:12]} 12. Ng3 {[%clk 0:02:34]}  Nf4 {[%clk 0:01:54]} 13. Nf5 {[%clk 0:02:00]}  Bxf5 {[%clk 0:01:51]} 14. exf5 {[%clk 0:02:01]}  Qd7 {[%clk 0:01:47]} 15. dxe5 {[%clk 0:01:57]}  dxe5 {[%clk 0:00:52]} 16. Qxd7 {[%clk 0:01:50]}  Nxd7 {[%clk 0:00:53]} 17. Nxe5 {[%clk 0:01:49]}  Nxe5 {[%clk 0:00:48]} 18. Rxe5 {[%clk 0:01:49]}  Nh5 {[%clk 0:00:47]} 19. g4 {[%clk 0:01:38]}  Nf6 {[%clk 0:00:45]} 20. Bg5 {[%clk 0:01:22]}  Nd7 {[%clk 0:00:40]} 21. Re7 {[%clk 0:01:20]}  Nb6 {[%clk 0:00:33]} 22. Bb3 {[%clk 0:01:16]}  Rac8 {[%clk 0:00:32]} 23. Rd1 {[%clk 0:01:13]}  a5 {[%clk 0:00:32]} 24. a4 {[%clk 0:01:12]}  h6 {[%clk 0:00:29]} 25. Bf4 {[%clk 0:01:09]}  Rfe8 {[%clk 0:00:22]} 26. Bxf7+ {[%clk 0:01:08]}  Kf8 {[%clk 0:00:21]} 27. Rxe8+ {[%clk 0:01:09]}  Rxe8 {[%clk 0:00:21]} 28. Bxe8 {[%clk 0:01:10]}  Kxe8 {[%clk 0:00:22]} 29. Be3 {[%clk 0:01:06]} 1-0


[Site "https://www.chess.com"]

[Event "Titled Tuesday Blitz July 11 Early 2023"]
[White "Llorente Zaro, Alfonso"]
[Black "Baruch, Liam"]
[WhiteFideId "2254131"]
[BlackFideId "14322064"]
[WhiteElo "2793"]
[BlackElo "2179"]
[Result "1-0"]
[Round "4"]
[TimeControl "180+2"]
[Date "2023.07.11"]
[WhiteClock "0:01:35"]
[BlackClock "0:00:00"]
[Board "101"]

1. e4 {[%clk 0:02:51]}  e5 {[%clk 0:02:59]} 2. Nf3 {[%clk 0:02:51]}  Nc6 {[%clk 0:03:00]} 3. d4 {[%clk 0:02:50]}  exd4 {[%clk 0:03:00]} 4. Nxd4 {[%clk 0:02:51]}  Bc5 {[%clk 0:03:00]} 5. Nb3 {[%clk 0:02:52]}  Bb6 {[%clk 0:03:00]} 6. Nc3 {[%clk 0:02:53]}  Nf6 {[%clk 0:02:59]} 7. Bb5 {[%clk 0:02:53]}  O-O {[%clk 0:02:55]} 8. O-O {[%clk 0:02:52]}  d6 {[%clk 0:02:54]} 9. Bg5 {[%clk 0:02:50]}  h6 {[%clk 0:02:54]} 10. Bh4 {[%clk 0:02:51]}  Be6 {[%clk 0:02:52]} 11. Bxc6 {[%clk 0:02:44]}  bxc6 {[%clk 0:02:52]} 12. Nd4 {[%clk 0:02:44]}  g5 {[%clk 0:02:21]} 13. Bg3 {[%clk 0:02:39]}  Bd7 {[%clk 0:02:17]} 14. e5 {[%clk 0:02:29]}  dxe5 {[%clk 0:01:55]} 15. Bxe5 {[%clk 0:02:30]}  Re8 {[%clk 0:01:50]} 16. Re1 {[%clk 0:02:22]}  Bg4 {[%clk 0:01:38]} 17. Nf3 {[%clk 0:02:19]}  Qxd1 {[%clk 0:01:30]} 18. Raxd1 {[%clk 0:02:20]}  Nd7 {[%clk 0:01:13]} 19. Bg3 {[%clk 0:02:12]}  Nc5 {[%clk 0:01:07]} 20. Rxe8+ {[%clk 0:01:57]}  Rxe8 {[%clk 0:01:07]} 21. Re1 {[%clk 0:01:58]}  Rxe1+ {[%clk 0:01:02]} 22. Nxe1 {[%clk 0:01:59]}  Bf5 {[%clk 0:00:59]} 23. Kf1 {[%clk 0:01:57]}  Kf8 {[%clk 0:00:52]} 24. Ke2 {[%clk 0:01:56]}  Ke7 {[%clk 0:00:51]} 25. Nd3 {[%clk 0:01:56]}  Nxd3 {[%clk 0:00:48]} 26. cxd3 {[%clk 0:01:57]}  Kd7 {[%clk 0:00:45]} 27. f3 {[%clk 0:01:55]}  Bd4 {[%clk 0:00:44]} 28. Na4 {[%clk 0:01:52]}  Be6 {[%clk 0:00:42]} 29. b3 {[%clk 0:01:52]}  f5 {[%clk 0:00:40]} 30. Bf2 {[%clk 0:01:52]}  Bxf2 {[%clk 0:00:31]} 31. Kxf2 {[%clk 0:01:53]}  Kd6 {[%clk 0:00:31]} 32. Ke3 {[%clk 0:01:54]}  Bd7 {[%clk 0:00:29]} 33. Kd4 {[%clk 0:01:51]}  Be8 {[%clk 0:00:16]} 34. g3 {[%clk 0:01:45]}  Bf7 {[%clk 0:00:14]} 35. Nc5 {[%clk 0:01:44]}  Bd5 {[%clk 0:00:13]} 36. f4 {[%clk 0:01:44]}  gxf4 {[%clk 0:00:11]} 37. gxf4 {[%clk 0:01:45]}  Bf3 {[%clk 0:00:09]} 38. Nb7+ {[%clk 0:01:44]}  Ke6 {[%clk 0:00:07]} 39. Nc5+ {[%clk 0:01:41]}  Kd6 {[%clk 0:00:06]} 40. a3 {[%clk 0:01:38]}  Bd5 {[%clk 0:00:06]} 41. b4 {[%clk 0:01:38]}  h5 {[%clk 0:00:05]} 42. h4 {[%clk 0:01:37]}  Bf3 {[%clk 0:00:04]} 43. Na4 {[%clk 0:01:35]}  Bd5 {[%clk 0:00:04]} 44. Nc3 {[%clk 0:01:36]}  Bf3 {[%clk 0:00:04]} 45. Nb1 {[%clk 0:01:36]}  Bd5 {[%clk 0:00:04]} 46. Nd2 {[%clk 0:01:37]}  Bg2 {[%clk 0:00:02]} 47. Nc4+ {[%clk 0:01:36]}  Kd7 {[%clk 0:00:02]} 48. Kc5 {[%clk 0:01:37]}  Bd5 {[%clk 0:00:00]} 49. Ne3 {[%clk 0:01:35]} 1-0


[Site "https://www.chess.com"]